fUSD/lending_fUSD_20260118
["ID","MTS","AMOUNT","RATE_DAILY","PERIOD"]
[402639343,1768733462124,-279.116326,0.00017999,2]
[402639344,1768733462134,-151.0,0.00017999,2]
[402639345,1768733462143,-150.0,0.00018,2]
[402639346,1768733462153,-150.0,0.00018,2]
[402639347,1768733462163,-236.45405301,0.00018,2]
[402639348,1768733462172,-150.0,0.00018,2]
[402639349,1768733462183,-265.5663701,0.00018,2]
[402639350,1768733462193,-150.0,0.00018,2]
[402639351,1768733462203,-1002.61682753,0.00018,2]
[402639352,1768733462212,-396381.53443886,0.00018,2]
[402639353,1768733462222,-271401.40442027,0.00018,2]
[402639354,1768733462231,-882878.28126227,0.00018,2]
[402639355,1768733462642,-2899.5,0.00018,2]
[402639356,1768733463205,-1505.97925537,0.00016201,2]
[402639357,1768733463217,-1148.13209162,0.00016201,2]
[402639358,1768733463251,-584.04478016,0.00016201,2]
[402639359,1768733463335,-686.78059288,0.00016201,2]
[402639360,1768733463377,-499.95991595,0.00016201,2]
[402639361,1768733463660,-151.0,0.00015822,2]
[402639362,1768733463670,-151.0,0.00015822,2]
[402639363,1768733463680,-16.19988001,0.00016201,2]
[402639364,1768733463693,-3296.93690759,0.00016201,2]
[402639365,1768733463704,-2439.0,0.00017395,2]
[402639366,1768733463714,-359.05271498,0.00017534,2]
[402639367,1768733463726,-243.72728502,0.00017534,2]
[402639368,1768733463736,-184.41739966,0.00017808,2]
[402639369,1768733463748,-418.36260034,0.00017808,2]
[402639370,1768733463758,-276.77339621,0.00018,2]
[402639371,1768733463771,-868.9541,0.00018,2]
[402639372,1768733463782,-281.97597382,0.00018,2]
[402639379,1768733742317,156.65,7.819e-05,2]
[402639380,1768733742373,156.65,8.254e-05,2]
[402639381,1768733742438,156.65,8.688e-05,2]
[402639382,1768733742631,156.65,9.123e-05,2]
[402639383,1768733743044,156.65,9.557e-05,2]
[402639384,1768733743468,156.65,9.991e-05,2]
[402639385,1768733743670,156.65,0.00010426,2]
[402639386,1768733743869,156.65,0.0001086,2]
[402639387,1768733744061,156.65,0.00011295,2]
[402639388,1768733744248,156.65,0.00011729,2]
[402639389,1768733744460,156.65,0.00012163,2]
[402639390,1768733744652,156.65,0.00012598,2]
[402639391,1768733744838,156.65,0.00013032,2]
[402639394,1768734338955,-156.65,0.00013467,2]
[402639395,1768734395126,-156.65,0.00013901,2]
[402639396,1768734395150,-156.65,0.00014335,2]
[402639397,1768734395174,-156.65,0.0001477,2]
[402639398,1768734395199,-836.5237469,0.00014813,2]
[402639399,1768734395222,-250.0,0.00014813,2]
[402639400,1768734395247,-195.0,0.00014813,2]
[402639401,1768734395272,-151.41453836,0.00014844,2]
[402639402,1768734395295,-179.52031928,0.00014844,2]
[402639403,1768734395320,-172.1921752,0.00014897,2]
[402639404,1768734395344,-697.98579439,0.00014897,2]
[402639465,1768734631775,-1200.0,0.00014798,2]
[402639466,1768734631785,-232.6153019,0.00014799,2]
[402639467,1768734631796,-3406.59746186,0.00014799,2]
[402639468,1768734631866,-4387.67352384,0.00014799,2]
[402639469,1768734631880,-27062.32173063,0.00014799,2]
[402639470,1768734631920,-24007.15705391,0.00014799,2]
[402639471,1768734631932,-737.22721849,0.00014799,2]
[402639481,1768734637867,-500.0,0.00014798,2]
[402639482,1768734637877,-74.0,0.00014798,2]
[402639483,1768734637888,-168.4790442,0.00014798,2]
[402639484,1768734637898,-145.58635584,0.00014798,2]
[402639485,1768734637910,-354.41364416,0.00014798,2]
[402639486,1768734637919,-500.0,0.00014798,2]
[402639487,1768734637930,-424.37289996,0.00014798,2]
[402639488,1768734637940,-187.29396545,0.00014798,2]
[402639489,1768734637952,-500.0,0.00014798,2]
[402639490,1768734637963,-1110.65555848,0.00014799,2]
[402639491,1768734637974,-3375.5170958,0.00014799,2]
[402639492,1768734637986,-696.05560694,0.00014799,2]
[402639493,1768734638019,-18200.89889173,0.00014799,2]
[402639494,1768734638031,-33329.90995989,0.00014799,2]
[402639495,1768734638043,-11337.8382476,0.00014799,2]
[402639496,1768734638065,-1691.06524236,0.00014799,2]
[402639497,1768734638076,-597.05296577,0.00014799,2]
[402639498,1768734638088,-1423.87773248,0.00014799,2]
[402639499,1768734638099,-281.55,0.00014799,2]
[402639500,1768734638110,-2142.76789655,0.00014799,2]
[402639501,1768734638172,-3396.48816319,0.00014799,2]
[402639509,1768734639989,-164326.39230471,0.00014799,2]
[402639510,1768734640124,-8640.93369751,0.00014799,2]
[402639511,1768734640230,-689615.40434636,0.00014799,2]
[402639512,1768734640240,-4147.84463718,0.000148,2]
[402639513,1768734640250,-1795.05404172,0.00014844,2]
[402639514,1768734640261,-245.126,0.00014898,2]
[402639515,1768734640271,-150.0,0.00014898,2]
[402639516,1768734640281,-151.41453832,0.000149,2]
[402639517,1768734640290,-5000.0,0.00015,2]
[402639518,1768734640300,-3449.62,0.00015144,2]
[402639519,1768734640309,-4147.84463711,0.00015144,2]
[402639520,1768734640320,-1795.05404166,0.00015184,2]
[402639521,1768734640329,-156.65,0.00015204,2]
[402639522,1768734640338,-4147.84463711,0.00015489,2]
[402639523,1768734640348,-1795.05404166,0.00015523,2]
[402639524,1768734640357,-156.65,0.00015639,2]
[402639525,1768734640367,-151.41453832,0.0001565,2]
[402639526,1768734640377,-151.0,0.00015668,2]
[402639527,1768734640386,-500.0,0.00015673,2]
[402639528,1768734640395,-151.0,0.00015673,2]
[402639529,1768734640404,-151.0,0.00015673,2]
[402639530,1768734640414,-151.0,0.00015702,2]
[402639531,1768734640423,-239.03553082,0.00015765,2]
[402639532,1768734640433,-46928.83,0.00015787,2]
[402639534,1768734640442,-4147.84463711,0.00015833,2]
[402639536,1768734640450,-1795.05404166,0.00015863,2]
[402639537,1768734640459,-402.24780221,0.00015882,2]
[402639538,1768734640469,-373.22,0.00015918,2]
[402639539,1768734640478,-1000.0,0.00015952,2]
[402639540,1768734640487,-4147.84463711,0.00016178,2]
[402639541,1768734640497,-150.0,0.000162,2]
[402639542,1768734640506,-150.0,0.000162,2]
[402639543,1768734640515,-150.0,0.000162,2]
[402639544,1768734640526,-150.0,0.000162,2]
[402639545,1768734640536,-150.0,0.000162,2]
[402639546,1768734640546,-150.0,0.000162,2]
[402639547,1768734640556,-150.0,0.000162,2]
[402639548,1768734640567,-150.0,0.000162,2]
[402639549,1768734640576,-1795.05404166,0.00016202,2]
[402639550,1768734640586,-1000.0,0.00016221,2]
[402639551,1768734640595,-1680.0,0.00016278,2]
[402639552,1768734640605,-1004.79478173,0.00016374,2]
[402639553,1768734640614,-151.41453832,0.000164,2]
[402639554,1768734640624,-155.6514004,0.00016428,2]
[402639555,1768734640634,-1054.40562856,0.00016438,2]
[402639556,1768734640644,-492.1398225,0.00016438,2]
[402639557,1768734640654,-500.0,0.00016438,2]
[402639558,1768734640664,-397.21207331,0.00016438,2]
[402639559,1768734640674,-596.53971654,0.00016438,2]
[402639560,1768734640684,-500.0,0.00016438,2]
[402639561,1768734640693,-500.0,0.00016438,2]
[402639562,1768734640703,-500.0,0.00016438,2]
[402639563,1768734640713,-500.0,0.00016438,2]
[402639564,1768734640722,-500.0,0.00016438,2]
[402639565,1768734640735,-500.0,0.00016438,2]
[402639566,1768734640745,-500.0,0.00016438,2]
[402639567,1768734640755,-500.0,0.00016438,2]
[402639568,1768734640764,-500.0,0.00016438,2]
[402639569,1768734640775,-500.0,0.00016438,2]
[402639570,1768734640784,-500.0,0.00016438,2]
[402639571,1768734640794,-1000.0,0.00016438,2]
[402639572,1768734640804,-346.68542403,0.00016438,2]
[402639573,1768734640813,-500.0,0.00016438,2]
[402639574,1768734640822,-609.2,0.00016438,2]
[402639575,1768734640832,-227.95127497,0.00016438,2]
[402639576,1768734640842,-500.0,0.00016438,2]
[402639577,1768734640851,-500.0,0.00016438,2]
[402639578,1768734640861,-500.0,0.00016438,2]
[402639579,1768734640871,-559.26127746,0.00016438,2]
[402639580,1768734640880,-500.0,0.00016438,2]
[402639581,1768734640890,-502.76,0.00016438,2]
[402639582,1768734640900,-500.0,0.00016438,2]
[402639583,1768734640909,-500.0,0.00016438,2]
[402639584,1768734640919,-500.0,0.00016438,2]
[402639585,1768734640928,-500.0,0.00016438,2]
[402639586,1768734640937,-298.1182132,0.00016438,2]
[402639587,1768734640947,-500.0,0.00016438,2]
[402639588,1768734640958,-500.0,0.00016438,2]
[402639589,1768734640968,-500.0,0.00016438,2]
[402639590,1768734640978,-500.0,0.00016438,2]
[402639591,1768734640987,-500.0,0.00016438,2]
[402639592,1768734640997,-500.0,0.00016438,2]
[402639593,1768734641007,-500.0,0.00016438,2]
[402639594,1768734641016,-500.0,0.00016438,2]
[402639595,1768734641026,-500.0,0.00016438,2]
[402639596,1768734641036,-500.0,0.00016438,2]
[402639597,1768734641045,-500.0,0.00016438,2]
[402639598,1768734641054,-500.0,0.00016438,2]
[402639599,1768734641064,-500.0,0.00016438,2]
[402639600,1768734641074,-500.0,0.00016438,2]
[402639601,1768734641083,-500.0,0.00016438,2]
[402639602,1768734641093,-500.0,0.00016438,2]
[402639603,1768734641102,-500.0,0.00016438,2]
[402639604,1768734641111,-500.0,0.00016438,2]
[402639605,1768734641121,-500.0,0.00016438,2]
[402639606,1768734641130,-500.0,0.00016438,2]
[402639607,1768734641139,-441.23232538,0.00016438,2]
[402639608,1768734641149,-500.0,0.00016438,2]
[402639609,1768734641158,-500.0,0.00016438,2]
[402639610,1768734641167,-570.60059675,0.00016438,2]
[402639611,1768734641178,-500.0,0.00016438,2]
[402639612,1768734641188,-500.0,0.00016438,2]
[402639613,1768734641198,-500.0,0.00016438,2]
[402639614,1768734641208,-500.0,0.00016438,2]
[402639615,1768734641219,-500.0,0.00016438,2]
[402639616,1768734641230,-500.0,0.00016438,2]
[402639617,1768734641240,-500.0,0.00016438,2]
[402639618,1768734641250,-500.0,0.00016438,2]
[402639619,1768734641260,-500.0,0.00016438,2]
[402639620,1768734641270,-500.0,0.00016438,2]
[402639621,1768734641280,-500.0,0.00016438,2]
[402639622,1768734641291,-500.0,0.00016438,2]
[402639623,1768734641302,-500.0,0.00016438,2]
[402639624,1768734641314,-500.0,0.00016438,2]
[402639625,1768734641324,-500.0,0.00016438,2]
[402639626,1768734641335,-500.0,0.00016438,2]
[402639627,1768734641346,-500.0,0.00016438,2]
[402639628,1768734641356,-500.0,0.00016438,2]
[402639629,1768734641366,-500.0,0.00016438,2]
[402639630,1768734641376,-483.11059759,0.00016438,2]
[402639631,1768734641385,-500.0,0.00016438,2]
[402639632,1768734641395,-500.0,0.00016438,2]
[402639633,1768734641404,-500.0,0.00016438,2]
[402639634,1768734641414,-500.0,0.00016438,2]
[402639635,1768734641424,-500.0,0.00016438,2]
[402639636,1768734641434,-500.0,0.00016438,2]
[402639637,1768734641443,-500.0,0.00016438,2]
[402639638,1768734641453,-500.0,0.00016438,2]
[402639639,1768734641462,-500.0,0.00016438,2]
[402639640,1768734641472,-500.0,0.00016438,2]
[402639641,1768734641481,-500.0,0.00016438,2]
[402639642,1768734641490,-500.0,0.00016438,2]
[402639643,1768734641500,-500.0,0.00016438,2]
[402639644,1768734641509,-500.0,0.00016438,2]
[402639645,1768734641519,-500.0,0.00016438,2]
[402639646,1768734641529,-500.0,0.00016438,2]
[402639647,1768734641538,-500.0,0.00016438,2]
[402639648,1768734641547,-500.0,0.00016438,2]
[402639649,1768734641557,-500.0,0.00016438,2]
[402639650,1768734641566,-626.42247154,0.00016438,2]
[402639651,1768734641576,-500.0,0.00016438,2]
[402639652,1768734641586,-500.0,0.00016438,2]
[402639653,1768734641595,-500.0,0.00016438,2]
[402639654,1768734641604,-500.0,0.00016438,2]
[402639655,1768734641613,-500.0,0.00016438,2]
[402639656,1768734641622,-500.0,0.00016438,2]
[402639657,1768734641631,-562.11,0.00016438,2]
[402639658,1768734641640,-500.0,0.00016438,2]
[402639659,1768734641649,-500.0,0.00016438,2]
[402639660,1768734641659,-500.0,0.00016438,2]
[402639661,1768734641668,-500.0,0.00016438,2]
[402639662,1768734641679,-500.0,0.00016438,2]
[402639663,1768734641689,-500.0,0.00016438,2]
[402639664,1768734641698,-500.0,0.00016438,2]
[402639665,1768734641708,-746.47,0.00016438,2]
[402639666,1768734641718,-500.0,0.00016438,2]
[402639667,1768734641730,-500.0,0.00016438,2]
[402639668,1768734641743,-500.64,0.00016438,2]
[402639669,1768734641752,-631.35,0.00016438,2]
[402639670,1768734641762,-500.0,0.00016438,2]
[402639671,1768734641772,-500.0,0.00016438,2]
[402639672,1768734641782,-1503.17,0.00016438,2]
[402639673,1768734641791,-500.0,0.00016438,2]
[402639674,1768734641800,-500.0,0.00016438,2]
[402639675,1768734641810,-500.0,0.00016438,2]
[402639676,1768734641819,-500.0,0.00016438,2]
[402639677,1768734641828,-500.0,0.00016438,2]
[402639678,1768734641839,-500.0,0.00016438,2]
[402639679,1768734641848,-500.0,0.00016438,2]
[402639680,1768734641858,-500.0,0.00016438,2]
[402639681,1768734641867,-500.0,0.00016438,2]
[402639682,1768734641876,-500.0,0.00016438,2]
[402639683,1768734641886,-584.3215799,0.00016438,2]
[402639684,1768734641896,-500.0,0.00016438,2]
[402639685,1768734641906,-500.0,0.00016438,2]
[402639686,1768734641916,-500.0,0.00016438,2]
[402639687,1768734641926,-500.0,0.00016438,2]
[402639688,1768734641936,-500.0,0.00016438,2]
[402639689,1768734641946,-522.42,0.00016438,2]
[402639690,1768734641955,-619.16,0.00016438,2]
[402639691,1768734641965,-500.0,0.00016438,2]
[402639692,1768734641975,-500.0,0.00016438,2]
[402639693,1768734641985,-500.0,0.00016438,2]
[402639694,1768734641995,-500.0,0.00016438,2]
[402639695,1768734642005,-500.0,0.00016438,2]
[402639696,1768734642015,-500.0,0.00016438,2]
[402639697,1768734642026,-371.95055888,0.00016438,2]
[402639698,1768734642036,-304.77625373,0.00016438,2]
[402639699,1768734642049,-500.0,0.00016438,2]
[402639700,1768734642059,-500.0,0.00016438,2]
[402639701,1768734642068,-500.0,0.00016438,2]
[402639702,1768734642077,-500.0,0.00016438,2]
[402639703,1768734642087,-500.0,0.00016438,2]
[402639704,1768734642097,-500.0,0.00016438,2]
[402639705,1768734642107,-500.0,0.00016438,2]
[402639706,1768734642116,-500.0,0.00016438,2]
[402639707,1768734642126,-500.0,0.00016438,2]
[402639708,1768734642135,-500.0,0.00016438,2]
[402639709,1768734642154,-714.9,0.00016438,2]
[402639710,1768734642165,-500.0,0.00016438,2]
[402639711,1768734642175,-4281.34,0.00016438,2]
[402639712,1768734642184,-500.0,0.00016438,2]
[402639713,1768734642194,-500.0,0.00016438,2]
[402639714,1768734642203,-500.0,0.00016438,2]
[402639715,1768734642213,-500.0,0.00016438,2]
[402639716,1768734642223,-500.0,0.00016438,2]
[402639717,1768734642232,-500.0,0.00016438,2]
[402639718,1768734642242,-500.0,0.00016438,2]
[402639719,1768734642252,-500.0,0.00016438,2]
[402639720,1768734642261,-500.0,0.00016438,2]
[402639721,1768734642271,-500.0,0.00016438,2]
[402639722,1768734642280,-500.0,0.00016438,2]
[402639723,1768734642290,-500.0,0.00016438,2]
[402639724,1768734642299,-500.0,0.00016438,2]
[402639725,1768734642308,-521.06,0.00016438,2]
[402639726,1768734642317,-500.0,0.00016438,2]
[402639727,1768734642327,-500.0,0.00016438,2]
[402639728,1768734642337,-500.0,0.00016438,2]
[402639729,1768734642347,-500.0,0.00016438,2]
[402639730,1768734642357,-500.0,0.00016438,2]
[402639731,1768734642365,-500.0,0.00016438,2]
[402639732,1768734642375,-500.0,0.00016438,2]
[402639733,1768734642384,-500.0,0.00016438,2]
[402639734,1768734642394,-500.0,0.00016438,2]
[402639735,1768734642403,-500.0,0.00016438,2]
[402639736,1768734642412,-617.61,0.00016438,2]
[402639737,1768734642422,-500.0,0.00016438,2]
[402639738,1768734642431,-500.0,0.00016438,2]
[402639739,1768734642440,-701.52,0.00016438,2]
[402639740,1768734642449,-500.0,0.00016438,2]
[402639741,1768734642459,-1395.94,0.00016438,2]
[402639742,1768734642468,-500.0,0.00016438,2]
[402639743,1768734642478,-500.0,0.00016438,2]
[402639744,1768734642487,-500.0,0.00016438,2]
[402639745,1768734642496,-500.0,0.00016438,2]
[402639746,1768734642510,-500.0,0.00016438,2]
[402639747,1768734642520,-500.0,0.00016438,2]
[402639748,1768734642529,-500.0,0.00016438,2]
[402639749,1768734642539,-500.0,0.00016438,2]
[402639750,1768734642548,-500.0,0.00016438,2]
[402639751,1768734642558,-500.0,0.00016438,2]
[402639752,1768734642567,-500.0,0.00016438,2]
[402639753,1768734642577,-500.0,0.00016438,2]
[402639754,1768734642586,-500.0,0.00016438,2]
[402639755,1768734642596,-500.0,0.00016438,2]
[402639756,1768734642606,-500.0,0.00016438,2]
[402639757,1768734642617,-500.0,0.00016438,2]
[402639758,1768734642627,-500.0,0.00016438,2]
[402639760,1768734642637,-500.0,0.00016438,2]
[402639762,1768734642647,-500.0,0.00016438,2]
[402639763,1768734642657,-500.0,0.00016438,2]
[402639764,1768734642667,-500.0,0.00016438,2]
[402639765,1768734642677,-500.0,0.00016438,2]
[402639766,1768734642686,-500.0,0.00016438,2]
[402639767,1768734642695,-500.0,0.00016438,2]
[402639768,1768734642706,-500.0,0.00016438,2]
[402639769,1768734642715,-608.65791124,0.00016438,2]
[402639770,1768734642726,-212.23328331,0.00016438,2]
[402639771,1768734642738,-500.0,0.00016438,2]
[402639772,1768734642748,-500.0,0.00016438,2]
[402639773,1768734642757,-500.0,0.00016438,2]
[402639774,1768734642767,-500.0,0.00016438,2]
[402639775,1768734642778,-500.0,0.00016438,2]
[402639776,1768734642787,-500.0,0.00016438,2]
[402639777,1768734642797,-500.0,0.00016438,2]
[402639778,1768734642807,-500.0,0.00016438,2]
[402639779,1768734642818,-500.0,0.00016438,2]
[402639780,1768734642827,-500.0,0.00016438,2]
[402639781,1768734642838,-500.0,0.00016438,2]
[402639782,1768734642848,-500.0,0.00016438,2]
[402639783,1768734642858,-500.0,0.00016438,2]
[402639784,1768734642868,-500.0,0.00016438,2]
[402639785,1768734642882,-500.0,0.00016438,2]
[402639786,1768734642891,-500.0,0.00016438,2]
[402639787,1768734642901,-500.0,0.00016438,2]
[402639788,1768734643203,-556.33281675,0.00016438,2]
[402639789,1768734643270,-500.0,0.00016438,2]
[402639790,1768734643279,-600.0,0.00016438,2]
[402639791,1768734643289,-150.0,0.00016457,2]
[402639792,1768734643299,-500.0,0.00016473,2]
[402639793,1768734643308,-500.0,0.00016473,2]
[402639794,1768734643318,-500.0,0.00016473,2]
[402639795,1768734643331,-500.0,0.00016473,2]
[402639796,1768734643340,-500.0,0.00016473,2]
[402639797,1768734643349,-500.0,0.00016473,2]
[402639798,1768734643358,-500.0,0.00016473,2]
[402639799,1768734643367,-500.0,0.00016473,2]
[402639801,1768734643376,-500.0,0.00016473,2]
[402639802,1768734643385,-500.0,0.00016473,2]
[402639803,1768734643394,-500.0,0.00016473,2]
[402639804,1768734643404,-500.0,0.00016473,2]
[402639805,1768734643413,-500.0,0.00016473,2]
[402639806,1768734643422,-500.0,0.00016473,2]
[402639807,1768734643432,-500.0,0.00016473,2]
[402639808,1768734643441,-500.0,0.00016473,2]
[402639809,1768734643450,-500.0,0.00016473,2]
[402639810,1768734643459,-500.0,0.00016473,2]
[402639811,1768734643468,-500.0,0.00016473,2]
[402639812,1768734643478,-500.0,0.00016473,2]
[402639813,1768734643487,-500.0,0.00016473,2]
[402639814,1768734643496,-500.0,0.00016473,2]
[402639815,1768734643505,-500.0,0.00016473,2]
[402639816,1768734643515,-500.0,0.00016473,2]
[402639817,1768734643529,-500.0,0.00016473,2]
[402639818,1768734643538,-500.0,0.00016473,2]
[402639819,1768734643547,-518.62251149,0.00016473,2]
[402639820,1768734643557,-500.0,0.00016473,2]
[402639821,1768734643566,-500.0,0.00016473,2]
[402639822,1768734643575,-500.0,0.00016473,2]
[402639823,1768734643585,-373.22,0.00016515,2]
[402639824,1768734643594,-4147.84463711,0.00016522,2]
[402639825,1768734643603,-1795.05404166,0.00016542,2]
[402639826,1768734643613,-151.1,0.00016588,2]
[402639827,1768734643622,-1054.40562856,0.00016712,2]
[402639828,1768734643633,-500.0,0.00016712,2]
[402639829,1768734643643,-500.0,0.00016712,2]
[402639830,1768734643652,-500.0,0.00016712,2]
[402639831,1768734643662,-310.2594973,0.00016712,2]
[402639832,1768734643672,-500.0,0.00016712,2]
[402639834,1768734643681,-500.0,0.00016712,2]
[402639836,1768734643691,-531.04340684,0.00016712,2]
[402639837,1768734643700,-348.83709258,0.00016712,2]
[402639838,1768734643710,-500.0,0.00016712,2]
[402639839,1768734643719,-500.0,0.00016712,2]
[402639840,1768734643729,-500.0,0.00016712,2]
[402639841,1768734643740,-500.0,0.00016712,2]
[402639842,1768734643750,-1000.0,0.00016712,2]
[402639843,1768734643760,-500.0,0.00016712,2]
[402639844,1768734643770,-609.2,0.00016712,2]
[402639845,1768734643779,-500.0,0.00016712,2]
[402639846,1768734643788,-500.0,0.00016712,2]
[402639847,1768734643798,-500.0,0.00016712,2]
[402639848,1768734643810,-500.0,0.00016712,2]
[402639849,1768734643819,-502.76,0.00016712,2]
[402639850,1768734643829,-500.0,0.00016712,2]
[402639851,1768734643838,-500.0,0.00016712,2]
[402639852,1768734643848,-500.0,0.00016712,2]
[402639853,1768734643858,-500.0,0.00016712,2]
[402639854,1768734643870,-517.6468193,0.00016712,2]
[402639855,1768734643883,-500.0,0.00016712,2]
[402639856,1768734643894,-500.0,0.00016712,2]
[402639857,1768734643903,-500.0,0.00016712,2]
[402639858,1768734643915,-296.00530668,0.00016712,2]
[402639859,1768734643925,-500.0,0.00016712,2]
[402639860,1768734643935,-500.0,0.00016712,2]
[402639861,1768734643944,-500.0,0.00016712,2]
[402639862,1768734643953,-500.0,0.00016712,2]
[402639863,1768734643963,-500.0,0.00016712,2]
[402639864,1768734643972,-500.0,0.00016712,2]
[402639865,1768734643982,-500.0,0.00016712,2]
[402639866,1768734643991,-500.0,0.00016712,2]
[402639867,1768734644002,-500.0,0.00016712,2]
[402639868,1768734644011,-500.0,0.00016712,2]
[402639869,1768734644020,-197.43855124,0.00016712,2]
[402639870,1768734644030,-500.0,0.00016712,2]
[402639871,1768734644040,-500.0,0.00016712,2]
[402639872,1768734644049,-500.0,0.00016712,2]
[402639873,1768734644059,-500.0,0.00016712,2]
[402639874,1768734644068,-500.0,0.00016712,2]
[402639875,1768734644078,-500.0,0.00016712,2]
[402639876,1768734644087,-500.0,0.00016712,2]
[402639877,1768734644097,-500.0,0.00016712,2]
[402639878,1768734644106,-500.0,0.00016712,2]
[402639879,1768734644115,-500.0,0.00016712,2]
[402639880,1768734644124,-500.0,0.00016712,2]
[402639881,1768734644133,-500.0,0.00016712,2]
[402639882,1768734644142,-500.0,0.00016712,2]
[402639883,1768734644152,-500.0,0.00016712,2]
[402639884,1768734644161,-500.0,0.00016712,2]
[402639885,1768734644170,-500.0,0.00016712,2]
[402639886,1768734644179,-500.0,0.00016712,2]
[402639887,1768734644189,-500.0,0.00016712,2]
[402639888,1768734644200,-500.0,0.00016712,2]
[402639889,1768734644210,-500.0,0.00016712,2]
[402639890,1768734644220,-500.0,0.00016712,2]
[402639891,1768734644232,-500.0,0.00016712,2]
[402639892,1768734644244,-500.0,0.00016712,2]
[402639893,1768734644255,-500.0,0.00016712,2]
[402639894,1768734644265,-500.0,0.00016712,2]
[402639895,1768734644274,-500.0,0.00016712,2]
[402639896,1768734644291,-500.0,0.00016712,2]
[402639897,1768734644304,-500.0,0.00016712,2]
[402639898,1768734644314,-500.0,0.00016712,2]
[402639899,1768734644326,-500.0,0.00016712,2]
[402639900,1768734644336,-500.0,0.00016712,2]
[402639901,1768734644346,-500.0,0.00016712,2]
[402639902,1768734644357,-500.0,0.00016712,2]
[402639903,1768734644367,-500.0,0.00016712,2]
[402639904,1768734644377,-500.0,0.00016712,2]
[402639905,1768734644386,-281.99897673,0.00016712,2]
[402639906,1768734644396,-500.0,0.00016712,2]
[402639907,1768734644406,-500.0,0.00016712,2]
[402639908,1768734644415,-500.0,0.00016712,2]
[402639909,1768734644424,-500.0,0.00016712,2]
[402639910,1768734644434,-500.0,0.00016712,2]
[402639911,1768734644443,-500.0,0.00016712,2]
[402639912,1768734644453,-500.0,0.00016712,2]
[402639913,1768734644462,-500.0,0.00016712,2]
[402639914,1768734644472,-500.0,0.00016712,2]
[402639915,1768734644481,-500.0,0.00016712,2]
[402639916,1768734644492,-287.0652963,0.00016712,2]
[402639917,1768734644501,-500.0,0.00016712,2]
[402639918,1768734644511,-562.11,0.00016712,2]
[402639919,1768734644520,-500.0,0.00016712,2]
[402639920,1768734644530,-500.0,0.00016712,2]
[402639921,1768734644540,-500.0,0.00016712,2]
[402639922,1768734644549,-500.0,0.00016712,2]
[402639923,1768734644559,-500.0,0.00016712,2]
[402639924,1768734644569,-500.0,0.00016712,2]
[402639925,1768734644579,-500.0,0.00016712,2]
[402639926,1768734644588,-746.47,0.00016712,2]
[402639927,1768734644598,-500.0,0.00016712,2]
[402639928,1768734644608,-500.0,0.00016712,2]
[402639929,1768734644618,-500.64,0.00016712,2]
[402639930,1768734644627,-631.35,0.00016712,2]
[402639931,1768734644637,-500.0,0.00016712,2]
[402639932,1768734644647,-1503.17,0.00016712,2]
[402639933,1768734644656,-500.0,0.00016712,2]